{"text_format":"1","workbook":"xlsx","n_sheets":2,"sheets":["FORMATO","Propiedades"],"not_rendered":{"charts":0,"images":1,"macros":1,"external_links":0,"defined_names":29,"comments":0,"pivot_tables":0},"unopened":[],"bounds":{"document_bytes":16777216,"sheet_cells":100000,"rows_first":2000,"rows_last":500,"rows_between":2000,"halvings":0,"cell_chars":16384,"cell_head_chars":4096},"cells_cut":0,"cells_raw":0,"read":"whole","date_system":"1900"}

{"sheet":"FORMATO","index":0,"n_rows":32,"n_cols":55,"rows_kept":32,"cut":false,"hidden":false,"merged":[[3,45,3,56],[0,0,3,9],[0,45,0,50],[0,51,0,56],[1,45,1,50],[1,51,1,56],[2,45,2,50],[2,51,2,56],[0,10,0,44],[1,10,1,44],[2,10,3,44],[4,54,6,56],[6,0,6,16],[6,17,6,40],[8,0,8,2],[8,3,8,7],[8,8,8,22],[8,23,8,42],[8,43,8,52],[8,53,8,56],[4,0,4,11],[4,12,4,40],[4,42,6,46],[4,47,6,50],[4,51,6,53],[9,53,9,56],[10,0,10,2],[10,3,10,7],[10,8,10,22],[10,23,10,42],[10,43,10,52],[10,53,10,56],[9,0,9,2],[9,3,9,7],[9,8,9,22],[9,23,9,42],[9,43,9,52],[11,53,11,56],[12,0,12,2],[12,3,12,7],[12,8,12,22],[12,23,12,42],[12,43,12,52],[12,53,12,56],[11,0,11,2],[11,3,11,7],[11,8,11,22],[11,23,11,42],[11,43,11,52],[13,53,13,56],[14,0,14,2],[14,3,14,7],[14,8,14,22],[14,23,14,42],[14,43,14,52],[14,53,14,56],[13,0,13,2],[13,3,13,7],[13,8,13,22],[13,23,13,42],[13,43,13,52],[15,53,15,56],[16,0,16,2],[16,3,16,7],[16,8,16,22],[16,23,16,42],[16,43,16,52],[16,53,16,56],[15,0,15,2],[15,3,15,7],[15,8,15,22],[15,23,15,42],[15,43,15,52],[19,53,19,56],[19,0,19,2],[19,3,19,7],[19,8,19,22],[19,23,19,42],[19,43,19,52],[17,53,17,56],[18,0,18,2],[18,3,18,7],[18,8,18,22],[18,23,18,42],[18,43,18,52],[18,53,18,56],[17,0,17,2],[17,3,17,7],[17,8,17,22],[17,23,17,42],[17,43,17,52],[28,0,28,18],[29,5,29,18],[30,5,30,18],[31,5,31,18],[29,24,29,37],[30,24,30,37],[31,24,31,37],[31,43,31,56],[29,43,29,56],[30,43,30,56],[29,0,29,4],[29,38,29,42],[29,19,29,23],[28,38,28,56],[28,19,28,37],[30,38,30,42],[30,19,30,23],[31,0,31,4],[31,38,31,42],[31,19,31,23],[30,0,30,4],[20,53,20,56],[20,0,20,2],[20,3,20,7],[20,8,20,22],[20,23,20,42],[20,43,20,52],[21,0,23,4],[21,5,23,8],[21,9,23,11],[21,12,23,14],[22,16,22,56],[23,16,23,56]]}
[null,null,null,null,null,null,null,null,null,null,"INSTITUTO NACIONAL DE CANCEROLOGÍA ESE",null,null,null,null,null,null,null,null,null,null,null,null,null,null,null,null,null,null,null,null,null,null,null,null,null,null,null,null,null,null,null,null,null,null,"CÓDIGO:",null,null,null,null,null,"GAD-P01-F-03"]
[null,null,null,null,null,null,null,null,null,null,"GESTIÓN DE ARCHIVO Y DOCUMENTAL",null,null,null,null,null,null,null,null,null,null,null,null,null,null,null,null,null,null,null,null,null,null,null,null,null,null,null,null,null,null,null,null,null,null,"VERSIÓN:",null,null,null,null,null,"2"]
[null,null,null,null,null,null,null,null,null,null,"ENTREGA DE DOCUMENTOS AL ARCHIVO DE HISTORIAS CLÍNICAS",null,null,null,null,null,null,null,null,null,null,null,null,null,null,null,null,null,null,null,null,null,null,null,null,null,null,null,null,null,null,null,null,null,null,"VIGENCIA:",null,null,null,null,null,"19-08-2021"]
[null,null,null,null,null,null,null,null,null,null,null,null,null,null,null,null,null,null,null,null,null,null,null,null,null,null,null,null,null,null,null,null,null,null,null,null,null,null,null,null,null,null,null,null,null,"Página 1 de 1"]
["SERVICIO QUE ENTREGA: ",null,null,null,null,null,null,null,null,null,null,null,null,null,null,null,null,null,null,null,null,null,null,null,null,null,null,null,null,null,null,null,null,null,null,null,null,null,null,null,null,null,"FECHA DE ENTREGA:",null,null,null,null,"AAAA",null,null,null,"MM",null,null,"DD"]
[]
["NOMBRE FUNCIONARIO/COLABORADOR QUE ENTREGA:"]
[]
["No.",null,null,"N° HISTORIA",null,null,null,null,"NOMBRE DEL PACIENTE",null,null,null,null,null,null,null,null,null,null,null,null,null,null,"TIPO DE DOCUMENTOS",null,null,null,null,null,null,null,null,null,null,null,null,null,null,null,null,null,null,null,"FECHA DE DOCUMENTOS",null,null,null,null,null,null,null,null,null,"N° FOLIOS"]
[1]
[{"$f":"+A10+1","v":2}]
[{"$f":"+A11+1","v":3}]
[4]
[5]
[6]
[7]
[8]
[9]
[10]
[11]
[12]
["FECHA DE RECIBIDO:",null,null,null,null,"AAAA",null,null,null,"MM",null,null,"DD"]
[]
[null,null,null,null,null,null,null,null,null,null,null,null,null,null,null,null,"NOMBRE  QUIEN  RECIBE DEL ARCHIVO DE HISTORIAS CLÍNICAS"]
[]
[]
[]
[]
["ELABORÓ",null,null,null,null,null,null,null,null,null,null,null,null,null,null,null,null,null,null,"REVISÓ",null,null,null,null,null,null,null,null,null,null,null,null,null,null,null,null,null,null,"APROBÓ"]
["Cargo:",null,null,null,null,{"$f":"ObtenerPropiedadAvanzada(\"CargoElaboro\")","v":"Profesional Universitario"},null,null,null,null,null,null,null,null,null,null,null,null,null,"Cargo:",null,null,null,null,{"$f":"ObtenerPropiedadAvanzada(\"CargoAprobo\")","v":"Coordinadora Grupo Área Gestión Documental y Correspondencia"},null,null,null,null,null,null,null,null,null,null,null,null,null,"Cargo:",null,null,null,null,{"$f":"ObtenerPropiedadAvanzada(\"CargoAprobo\")","v":"Coordinadora Grupo Área Gestión Documental y Correspondencia"}]
["Dependencia:",null,null,null,null,{"$f":"ObtenerPropiedadAvanzada(\"DeptoElaboro\")","v":"Oficina Asesora de Planeación y Sistemas"},null,null,null,null,null,null,null,null,null,null,null,null,null,"Dependencia:",null,null,null,null,{"$f":"ObtenerPropiedadAvanzada(\"DeptoAprobo\")","v":"Grupo Área Gestión Documental y Correspondencia"},null,null,null,null,null,null,null,null,null,null,null,null,null,"Dependencia:",null,null,null,null,{"$f":"ObtenerPropiedadAvanzada(\"DeptoAprobo\")","v":"Grupo Área Gestión Documental y Correspondencia"}]
["Fecha:",null,null,null,null,{"$f":"ObtenerPropiedadAvanzada(\"FechaElaboro\")","v":"18-08-2021"},null,null,null,null,null,null,null,null,null,null,null,null,null,"Fecha:",null,null,null,null,{"$f":"ObtenerPropiedadAvanzada(\"FechaAprobo\")","v":"19-08-2021"},null,null,null,null,null,null,null,null,null,null,null,null,null,"Fecha:",null,null,null,null,{"$f":"ObtenerPropiedadAvanzada(\"FechaAprobo\")","v":"19-08-2021"}]

{"sheet":"Propiedades","index":1,"n_rows":1,"n_cols":18,"rows_kept":1,"cut":false,"hidden":true,"merged":[]}
[10218,10543,45,"GESTIÓN DE ARCHIVO Y DOCUMENTAL","vbautista","vbautista","psalamanca",45,520532,"PROCEDIMIENTO PARA GESTIÓN DE DOCUMENTOS",454,"CD - Formato",45,"GAD-P01-F-03"," ",null,null,"vbautista"]